[Event "*** SCC Grand Prix: Titled Tuesday Blitz"]
[Site "Chess.com"]
[Date "2020.06.09"]
[Round "4"]
[White "vugarrasulov"]
[Black "NIGWAPO"]
[Result "1-0"]
[WhiteElo "2798"]
[BlackElo "2550"]
[TimeControl "180+1"]
[EndTime "9:41:23 PDT"]
[Termination "vugarrasulov won on time"]

1. d4 {[%clk 0:03:00.9]} 1... Nf6 {[%clk 0:02:59.6]} 2. c4 {[%clk 0:03:00.6]}
2... c5 {[%clk 0:02:59.7]} 3. d5 {[%clk 0:03:00.5]} 3... e6 {[%clk 0:03:00.1]}
4. Nc3 {[%clk 0:02:59.6]} 4... exd5 {[%clk 0:03:01]} 5. cxd5 {[%clk 0:03:00.5]}
5... d6 {[%clk 0:03:01.6]} 6. Nf3 {[%clk 0:03:00.6]} 6... g6 {[%clk 0:03:02.1]}
7. Nd2 {[%clk 0:03:00.2]} 7... Bg7 {[%clk 0:03:02.4]} 8. e4 {[%clk 0:03:00.8]}
8... O-O {[%clk 0:03:02.4]} 9. Be2 {[%clk 0:03:00.3]} 9... Re8 {[%clk
0:03:00.9]} 10. O-O {[%clk 0:03:00.6]} 10... Nbd7 {[%clk 0:02:57.9]} 11. Qc2
{[%clk 0:02:59.7]} 11... a6 {[%clk 0:02:58.1]} 12. a4 {[%clk 0:02:59.1]} 12...
Qc7 {[%clk 0:02:56.6]} 13. Nc4 {[%clk 0:02:56.8]} 13... Ne5 {[%clk 0:02:55.6]}
14. Nxe5 {[%clk 0:02:56.6]} 14... Rxe5 {[%clk 0:02:56.2]} 15. Bf4 {[%clk
0:02:56.4]} 15... Re7 {[%clk 0:02:55.8]} 16. a5 {[%clk 0:02:49.7]} 16... Nd7
{[%clk 0:02:44.2]} 17. Rfe1 {[%clk 0:02:49.6]} 17... Ne5 {[%clk 0:02:42.8]} 18.
Bg3 {[%clk 0:02:36.2]} 18... c4 {[%clk 0:02:37.4]} 19. f4 {[%clk 0:02:29.4]}
19... Ng4 {[%clk 0:02:36.1]} 20. Bxg4 {[%clk 0:02:22.7]} 20... Bxg4 {[%clk
0:02:35.1]} 21. Qd2 {[%clk 0:02:13.7]} 21... Rae8 {[%clk 0:02:32.5]} 22. e5
{[%clk 0:02:12]} 22... dxe5 {[%clk 0:02:27.8]} 23. d6 {[%clk 0:02:11.9]} 23...
Qd7 {[%clk 0:02:22.2]} 24. Nd5 {[%clk 0:01:51.1]} 24... Qxd6 {[%clk 0:02:19.8]}
25. Nxe7+ {[%clk 0:01:49.7]} 25... Qxe7 {[%clk 0:02:19.9]} 26. fxe5 {[%clk
0:01:49.9]} 26... h5 {[%clk 0:02:08.7]} 27. h3 {[%clk 0:01:49.9]} 27... Bf5
{[%clk 0:02:05.4]} 28. Rad1 {[%clk 0:01:36.2]} 28... Qc5+ {[%clk 0:02:03.5]} 29.
Bf2 {[%clk 0:01:32]} 29... Qb5 {[%clk 0:01:58.9]} 30. Bd4 {[%clk 0:01:29.2]}
30... Rd8 {[%clk 0:01:55.8]} 31. Qc3 {[%clk 0:01:22.8]} 31... Be6 {[%clk
0:01:42.2]} 32. Rd2 {[%clk 0:01:18]} 32... Rd5 {[%clk 0:01:37.8]} 33. Red1
{[%clk 0:01:15.2]} 33... Qxa5 {[%clk 0:01:35.5]} 34. Qxc4 {[%clk 0:01:05.5]}
34... Bxe5 {[%clk 0:01:30.9]} 35. Qc3 {[%clk 0:00:56.5]} 35... Bxd4+ {[%clk
0:01:17.8]} 36. Rxd4 {[%clk 0:00:57.4]} 36... Qxc3 {[%clk 0:01:17.7]} 37. bxc3
{[%clk 0:00:57.2]} 37... Rc5 {[%clk 0:01:18]} 38. Rc1 {[%clk 0:00:52.8]} 38...
b5 {[%clk 0:01:17]} 39. Ra1 {[%clk 0:00:43.9]} 39... Rxc3 {[%clk 0:01:11.5]} 40.
Rxa6 {[%clk 0:00:44.3]} 40... Rc2 {[%clk 0:01:03.7]} 41. Rb6 {[%clk 0:00:44.3]}
41... Bc4 {[%clk 0:01:01]} 42. Rf4 {[%clk 0:00:40]} 42... Kg7 {[%clk 0:00:59.8]}
43. Kh2 {[%clk 0:00:39.1]} 43... Bd5 {[%clk 0:00:49.1]} 44. Kg1 {[%clk 0:00:35]}
44... Rxg2+ {[%clk 0:00:44.6]} 45. Kf1 {[%clk 0:00:35.1]} 45... Rb2 {[%clk
0:00:44.2]} 46. h4 {[%clk 0:00:35.4]} 46... Rb3 {[%clk 0:00:33]} 47. Ke2 {[%clk
0:00:32.4]} 47... Bc4+ {[%clk 0:00:31.3]} 48. Kf2 {[%clk 0:00:32.8]} 48... Rd3
{[%clk 0:00:25.5]} 49. Rb7 {[%clk 0:00:31.3]} 49... Rd6 {[%clk 0:00:22.7]} 50.
Ke3 {[%clk 0:00:29.2]} 50... Re6+ {[%clk 0:00:22.2]} 51. Kd2 {[%clk 0:00:28.2]}
51... Rf6 {[%clk 0:00:21.8]} 52. Ke3 {[%clk 0:00:28.3]} 52... Rxf4 {[%clk
0:00:21.1]} 53. Kxf4 {[%clk 0:00:29.2]} 53... Kf6 {[%clk 0:00:21.6]} 54. Rb6+
{[%clk 0:00:29.6]} 54... Ke7 {[%clk 0:00:19.9]} 55. Ke5 {[%clk 0:00:30.1]} 55...
Kd7 {[%clk 0:00:19.9]} 56. Kd4 {[%clk 0:00:29.3]} 56... Kc7 {[%clk 0:00:18.8]}
57. Kc5 {[%clk 0:00:29.8]} 57... Kd7 {[%clk 0:00:15.6]} 58. Kd4 {[%clk
0:00:29.9]} 58... Ke7 {[%clk 0:00:15.8]} 59. Ke5 {[%clk 0:00:29.9]} 59... Bd3
{[%clk 0:00:14.6]} 60. Rb7+ {[%clk 0:00:29.4]} 60... Ke8 {[%clk 0:00:13.7]} 61.
Rb8+ {[%clk 0:00:26.9]} 61... Ke7 {[%clk 0:00:13.5]} 62. Rb7+ {[%clk 0:00:27.5]}
62... Ke8 {[%clk 0:00:13.8]} 63. Kd6 {[%clk 0:00:27.6]} 63... Kf8 {[%clk
0:00:12.9]} 64. Rb8+ {[%clk 0:00:27.6]} 64... Kg7 {[%clk 0:00:13.2]} 65. Ke5
{[%clk 0:00:27.5]} 65... Bc4 {[%clk 0:00:13.7]} 66. Rb7 {[%clk 0:00:27.4]} 66...
Kh6 {[%clk 0:00:10.9]} 67. Kf6 {[%clk 0:00:27.2]} 67... Kh7 {[%clk 0:00:11.4]}
68. Rb8 {[%clk 0:00:27.3]} 68... Bd5 {[%clk 0:00:06.6]} 69. Rxb5 {[%clk
0:00:26.6]} 69... Be6 {[%clk 0:00:07.1]} 70. Rb8 {[%clk 0:00:25.9]} 70... Bd5
{[%clk 0:00:07.3]} 71. Ke5 {[%clk 0:00:23.1]} 71... Be6 {[%clk 0:00:07.7]} 72.
Kf6 {[%clk 0:00:23.5]} 72... Bd5 {[%clk 0:00:08]} 73. Rd8 {[%clk 0:00:24.4]}
73... Be6 {[%clk 0:00:08.2]} 74. Ke7 {[%clk 0:00:24.7]} 74... Kg7 {[%clk
0:00:06.2]} 75. Rd2 {[%clk 0:00:23.6]} 75... Kh7 {[%clk 0:00:05.8]} 76. Kf8
{[%clk 0:00:23.1]} 76... Kh6 {[%clk 0:00:05.6]} 77. Rg2 {[%clk 0:00:21.3]} 77...
f5 {[%clk 0:00:04.9]} 78. Ke7 {[%clk 0:00:21.1]} 78... Bd5 {[%clk 0:00:05.1]}
79. Rd2 {[%clk 0:00:21]} 79... Be4 {[%clk 0:00:01.8]} 80. Kf6 {[%clk 0:00:21.2]}
80... f4 {[%clk 0:00:01.7]} 81. Rd4 {[%clk 0:00:21.4]} 1-0

[Event "*** SCC Grand Prix: Titled Tuesday Blitz"]
[Site "Chess.com"]
[Date "2020.06.09"]
[Round "4"]
[White "Mazetovic"]
[Black "eCztery"]
[Result "1-0"]
[WhiteElo "2630"]
[BlackElo "2411"]
[TimeControl "180+1"]
[EndTime "9:41:24 PDT"]
[Termination "Mazetovic won by checkmate"]

1. e4 {[%clk 0:03:00.9]} 1... c5 {[%clk 0:02:57.5]} 2. Nf3 {[%clk 0:03:00.4]}
2... Nc6 {[%clk 0:02:57.7]} 3. Bb5 {[%clk 0:02:59.7]} 3... g6 {[%clk 0:02:57.7]}
4. O-O {[%clk 0:02:58.4]} 4... Bg7 {[%clk 0:02:57.4]} 5. Re1 {[%clk 0:02:58.6]}
5... e5 {[%clk 0:02:54.3]} 6. Bxc6 {[%clk 0:02:57.9]} 6... dxc6 {[%clk
0:02:55.2]} 7. d3 {[%clk 0:02:57.5]} 7... Ne7 {[%clk 0:02:55.3]} 8. a3 {[%clk
0:02:55.5]} 8... O-O {[%clk 0:02:55.7]} 9. b4 {[%clk 0:02:55.1]} 9... cxb4
{[%clk 0:02:55.4]} 10. axb4 {[%clk 0:02:55]} 10... a6 {[%clk 0:02:49.1]} 11. Bb2
{[%clk 0:02:53.7]} 11... Qc7 {[%clk 0:02:44.5]} 12. Nbd2 {[%clk 0:02:52.5]}
12... h6 {[%clk 0:02:42.6]} 13. Nc4 {[%clk 0:02:51.6]} 13... Bg4 {[%clk
0:02:40.6]} 14. h3 {[%clk 0:02:49.6]} 14... Bxf3 {[%clk 0:02:40.2]} 15. Qxf3
{[%clk 0:02:49.2]} 15... Rae8 {[%clk 0:02:34.3]} 16. Qg3 {[%clk 0:02:37.7]}
16... Nc8 {[%clk 0:02:27.3]} 17. Ra5 {[%clk 0:02:36.8]} 17... b5 {[%clk
0:02:04.8]} 18. Nd2 {[%clk 0:02:35.4]} 18... c5 {[%clk 0:01:48]} 19. Rxa6 {[%clk
0:02:13.1]} 19... cxb4 {[%clk 0:01:47.4]} 20. Rc1 {[%clk 0:02:12.6]} 20... h5
{[%clk 0:01:39]} 21. Nf1 {[%clk 0:02:01.2]} 21... Nb6 {[%clk 0:01:23.2]} 22.
Raa1 {[%clk 0:01:26.4]} 22... Na4 {[%clk 0:01:21.1]} 23. Rab1 {[%clk 0:01:25.9]}
23... Kh7 {[%clk 0:01:12.8]} 24. Ne3 {[%clk 0:01:25.8]} 24... Rc8 {[%clk
0:00:47.8]} 25. Nd5 {[%clk 0:01:22.7]} 25... Qd6 {[%clk 0:00:48.1]} 26. Ba1
{[%clk 0:01:18.6]} 26... Bh6 {[%clk 0:00:42.5]} 27. Bxe5 {[%clk 0:01:17.8]}
27... h4 {[%clk 0:00:33.1]} 28. Qh2 {[%clk 0:01:03.6]} 28... Qe6 {[%clk
0:00:32]} 29. Nf6+ {[%clk 0:01:03.2]} 29... Kg7 {[%clk 0:00:30.3]} 30. f4 {[%clk
0:00:46.1]} 30... Nc3 {[%clk 0:00:21.6]} 31. Ng4+ {[%clk 0:00:44.4]} 31... Kh7
{[%clk 0:00:20.9]} 32. Bxc3 {[%clk 0:00:42.3]} 32... Rxc3 {[%clk 0:00:19.9]} 33.
Nxh6 {[%clk 0:00:37.8]} 33... Kxh6 {[%clk 0:00:20.8]} 34. f5 {[%clk 0:00:38.1]}
34... Qb6+ {[%clk 0:00:19.6]} 35. Kh1 {[%clk 0:00:37.4]} 35... Rfc8 {[%clk
0:00:20.1]} 36. Qf4+ {[%clk 0:00:37.5]} 36... Kg7 {[%clk 0:00:19.7]} 37. fxg6
{[%clk 0:00:35.8]} 37... fxg6 {[%clk 0:00:20.6]} 38. Rf1 {[%clk 0:00:35.2]}
38... Qe6 {[%clk 0:00:19.3]} 39. Rxb4 {[%clk 0:00:32.8]} 39... Rxc2 {[%clk
0:00:19.6]} 40. Rxb5 {[%clk 0:00:32.8]} 40... R2c7 {[%clk 0:00:17.6]} 41. Qe5+
{[%clk 0:00:29.4]} 41... Qxe5 {[%clk 0:00:17.6]} 42. Rxe5 {[%clk 0:00:29.7]}
42... Rd7 {[%clk 0:00:17.4]} 43. Rf4 {[%clk 0:00:19.5]} 43... Rc1+ {[%clk
0:00:17.7]} 44. Kh2 {[%clk 0:00:18.8]} 44... Rd1 {[%clk 0:00:18.6]} 45. Rxh4
{[%clk 0:00:18.7]} 45... R7xd3 {[%clk 0:00:17]} 46. Rg4 {[%clk 0:00:18.9]} 46...
Rd6 {[%clk 0:00:14.9]} 47. Reg5 {[%clk 0:00:17.8]} 47... Re1 {[%clk 0:00:14.9]}
48. Ra5 {[%clk 0:00:16.9]} 48... Re6 {[%clk 0:00:12.8]} 49. Ra7+ {[%clk
0:00:13.1]} 49... Kh6 {[%clk 0:00:12.6]} 50. Ra4 {[%clk 0:00:11.8]} 50... g5
{[%clk 0:00:12.1]} 51. Ra5 {[%clk 0:00:11.2]} 51... R6xe4 {[%clk 0:00:09.2]} 52.
Raxg5 {[%clk 0:00:09.1]} 52... Re6 {[%clk 0:00:07.7]} 53. Rg8 {[%clk 0:00:08.4]}
53... Kh7 {[%clk 0:00:07.4]} 54. R4g7+ {[%clk 0:00:08.1]} 54... Kh6 {[%clk
0:00:07.4]} 55. Rg3 {[%clk 0:00:08]} 55... Kh7 {[%clk 0:00:08]} 56. R8g4 {[%clk
0:00:08]} 56... Rd1 {[%clk 0:00:04.7]} 57. Rh4+ {[%clk 0:00:07.9]} 57... Rh6
{[%clk 0:00:05.1]} 58. Rxh6+ {[%clk 0:00:08.3]} 58... Kxh6 {[%clk 0:00:06]} 59.
Ra3 {[%clk 0:00:08.3]} 59... Kh5 {[%clk 0:00:06.6]} 60. Ra5+ {[%clk 0:00:07.7]}
60... Kg6 {[%clk 0:00:05.9]} 61. h4 {[%clk 0:00:08]} 61... Rd3 {[%clk
0:00:06.5]} 62. g3 {[%clk 0:00:08.1]} 62... Kh6 {[%clk 0:00:07.4]} 63. Kh3
{[%clk 0:00:08.6]} 63... Rd4 {[%clk 0:00:07.5]} 64. Ra6+ {[%clk 0:00:09.1]}
64... Kg7 {[%clk 0:00:07.1]} 65. h5 {[%clk 0:00:09.6]} 65... Rc4 {[%clk
0:00:06.8]} 66. g4 {[%clk 0:00:10.2]} 66... Rc1 {[%clk 0:00:07.7]} 67. Kh4
{[%clk 0:00:10.5]} 67... Rh1+ {[%clk 0:00:08]} 68. Kg5 {[%clk 0:00:10.7]} 68...
Rc1 {[%clk 0:00:08.9]} 69. Ra7+ {[%clk 0:00:10.8]} 69... Kh8 {[%clk 0:00:09.8]}
70. h6 {[%clk 0:00:10.7]} 70... Rc6 {[%clk 0:00:10.1]} 71. Kh5 {[%clk
0:00:10.7]} 71... Rd6 {[%clk 0:00:10.5]} 72. g5 {[%clk 0:00:11.1]} 72... Rd1
{[%clk 0:00:11.1]} 73. g6 {[%clk 0:00:10.8]} 73... Rh1+ {[%clk 0:00:11.2]} 74.
Kg5 {[%clk 0:00:11.2]} 74... Rg1+ {[%clk 0:00:11.5]} 75. Kf6 {[%clk 0:00:10.5]}
75... Rf1+ {[%clk 0:00:11.9]} 76. Ke7 {[%clk 0:00:10.1]} 76... Re1+ {[%clk
0:00:10.9]} 77. Kd8 {[%clk 0:00:09.6]} 77... Rd1+ {[%clk 0:00:09.9]} 78. Ke8
{[%clk 0:00:09.9]} 78... Re1+ {[%clk 0:00:09.3]} 79. Re7 {[%clk 0:00:09.8]}
79... Rf1 {[%clk 0:00:09.2]} 80. Rf7 {[%clk 0:00:07.7]} 80... Re1+ {[%clk
0:00:08.6]} 81. Kf8 {[%clk 0:00:07.4]} 81... Ra1 {[%clk 0:00:06.2]} 82. g7+
{[%clk 0:00:07.7]} 82... Kh7 {[%clk 0:00:06.6]} 83. g8=Q+ {[%clk 0:00:08.2]}
83... Kxh6 {[%clk 0:00:07.5]} 84. Rh7# {[%clk 0:00:08.3]} 1-0

[Event "*** SCC Grand Prix: Titled Tuesday Blitz"]
[Site "Chess.com"]
[Date "2020.06.09"]
[Round "4"]
[White "mishanick"]
[Black "gmmoranda"]
[Result "0-1"]
[WhiteElo "2937"]
[BlackElo "2796"]
[TimeControl "180+1"]
[EndTime "9:41:40 PDT"]
[Termination "gmmoranda won by resignation"]

1. d4 {[%clk 0:03:00.9]} 1... Nf6 {[%clk 0:02:59.6]} 2. c4 {[%clk 0:03:01]} 2...
e6 {[%clk 0:03:00.2]} 3. Nf3 {[%clk 0:03:01.3]} 3... d5 {[%clk 0:02:59.5]} 4.
Nc3 {[%clk 0:03:01.7]} 4... c6 {[%clk 0:03:00]} 5. Bg5 {[%clk 0:03:01.3]} 5...
Nbd7 {[%clk 0:03:00]} 6. cxd5 {[%clk 0:03:00.6]} 6... exd5 {[%clk 0:02:59.4]} 7.
e3 {[%clk 0:03:01.1]} 7... Qa5 {[%clk 0:02:59.6]} 8. Bd3 {[%clk 0:02:38.5]} 8...
Ne4 {[%clk 0:02:58]} 9. Qc2 {[%clk 0:02:38.5]} 9... Nxg5 {[%clk 0:02:53.5]} 10.
Nxg5 {[%clk 0:02:39.4]} 10... h6 {[%clk 0:02:53.9]} 11. Nf3 {[%clk 0:02:39.7]}
11... Bd6 {[%clk 0:02:54.1]} 12. O-O {[%clk 0:02:40]} 12... O-O {[%clk
0:02:54.7]} 13. a3 {[%clk 0:02:39.7]} 13... Qd8 {[%clk 0:02:53.3]} 14. b4 {[%clk
0:02:39.6]} 14... a6 {[%clk 0:02:53.9]} 15. Rab1 {[%clk 0:02:35.5]} 15... Re8
{[%clk 0:02:46.5]} 16. h3 {[%clk 0:02:31.3]} 16... Nf6 {[%clk 0:02:42.5]} 17. a4
{[%clk 0:02:30.2]} 17... Qe7 {[%clk 0:02:39.2]} 18. b5 {[%clk 0:02:29.5]} 18...
axb5 {[%clk 0:02:39.6]} 19. axb5 {[%clk 0:02:30.3]} 19... c5 {[%clk 0:02:32.6]}
20. dxc5 {[%clk 0:02:25.3]} 20... Bxc5 {[%clk 0:02:33.5]} 21. Rfd1 {[%clk
0:02:06]} 21... Be6 {[%clk 0:02:24]} 22. Ne2 {[%clk 0:02:01]} 22... Rec8 {[%clk
0:02:15.8]} 23. Qb2 {[%clk 0:01:59.7]} 23... Ne4 {[%clk 0:02:13.5]} 24. Ra1
{[%clk 0:01:19.5]} 24... Rxa1 {[%clk 0:01:55.6]} 25. Rxa1 {[%clk 0:01:20.4]}
25... Bd7 {[%clk 0:01:56.1]} 26. Nfd4 {[%clk 0:01:11]} 26... Qe5 {[%clk
0:01:33]} 27. Rc1 {[%clk 0:01:00.4]} 27... Ra8 {[%clk 0:01:28.2]} 28. Qc2 {[%clk
0:00:49.3]} 28... Bd6 {[%clk 0:01:19.6]} 29. Nf3 {[%clk 0:00:34.6]} 29... Qe8
{[%clk 0:01:19.4]} 30. Qb3 {[%clk 0:00:24]} 30... Nc5 {[%clk 0:00:53.4]} 31.
Qxd5 {[%clk 0:00:23.4]} 31... Nxd3 {[%clk 0:00:53.8]} 32. Qxd3 {[%clk
0:00:24.3]} 32... Bxb5 {[%clk 0:00:45.1]} 33. Qxd6 {[%clk 0:00:24.2]} 33... Bxe2
{[%clk 0:00:45.4]} 34. Nd4 {[%clk 0:00:24.7]} 34... Ba6 {[%clk 0:00:45.3]} 35.
Rc7 {[%clk 0:00:22]} 35... Rd8 {[%clk 0:00:43.2]} 36. Qc5 {[%clk 0:00:20.4]}
36... Qf8 {[%clk 0:00:40.5]} 37. Qf5 {[%clk 0:00:17.7]} 37... Re8 {[%clk
0:00:33.7]} 38. g4 {[%clk 0:00:13.5]} 38... Re7 {[%clk 0:00:31.9]} 39. Rc8
{[%clk 0:00:13.1]} 39... Re8 {[%clk 0:00:32.3]} 40. Rc7 {[%clk 0:00:13.4]} 40...
Re7 {[%clk 0:00:32.5]} 41. Rc1 {[%clk 0:00:13.9]} 41... Re8 {[%clk 0:00:31.2]}
42. Qd5 {[%clk 0:00:13.4]} 42... Qe7 {[%clk 0:00:28.2]} 43. Nf5 {[%clk
0:00:12.8]} 43... Qe6 {[%clk 0:00:21]} 44. Qxe6 {[%clk 0:00:12]} 44... fxe6
{[%clk 0:00:21.1]} 45. Nd6 {[%clk 0:00:11.5]} 45... Rd8 {[%clk 0:00:20.8]} 46.
Ne4 {[%clk 0:00:09.6]} 46... Bb5 {[%clk 0:00:20.7]} 47. Rb1 {[%clk 0:00:08.5]}
47... Bc6 {[%clk 0:00:19.9]} 48. Nc5 {[%clk 0:00:08.2]} 48... Re8 {[%clk
0:00:15.6]} 49. Rb6 {[%clk 0:00:07.3]} 49... Bd5 {[%clk 0:00:14.8]} 50. e4
{[%clk 0:00:06.6]} 50... Bc6 {[%clk 0:00:15.2]} 51. f3 {[%clk 0:00:07.1]} 51...
Re7 {[%clk 0:00:15.7]} 52. Kf2 {[%clk 0:00:07.3]} 52... e5 {[%clk 0:00:15.6]}
53. Ke3 {[%clk 0:00:07.7]} 53... Kf7 {[%clk 0:00:16]} 54. h4 {[%clk 0:00:08.2]}
54... Kf6 {[%clk 0:00:16.5]} 55. h5 {[%clk 0:00:08.2]} 55... Kg5 {[%clk
0:00:16.2]} 56. Rb4 {[%clk 0:00:08.2]} 56... Rf7 {[%clk 0:00:15.7]} 57. Rb2
{[%clk 0:00:08.3]} 57... Kh4 {[%clk 0:00:15.3]} 58. Nd3 {[%clk 0:00:08.6]} 58...
Re7 {[%clk 0:00:13.8]} 59. Rh2+ {[%clk 0:00:08.5]} 59... Kg5 {[%clk 0:00:13.8]}
60. Rc2 {[%clk 0:00:08.3]} 60... Bb5 {[%clk 0:00:13.7]} 61. Nb4 {[%clk
0:00:07.8]} 61... Kh4 {[%clk 0:00:13.5]} 62. Rc5 {[%clk 0:00:07.8]} 62... Ba4
{[%clk 0:00:12.3]} 63. Nd3 {[%clk 0:00:07.9]} 63... Kg3 {[%clk 0:00:11.3]} 64.
Rxe5 {[%clk 0:00:07.4]} 64... Rf7 {[%clk 0:00:10.7]} 65. Rf5 {[%clk 0:00:07.6]}
65... Rxf5 {[%clk 0:00:11]} 66. gxf5 {[%clk 0:00:08.4]} 66... Be8 {[%clk
0:00:11.2]} 67. Nf4 {[%clk 0:00:08.2]} 67... b5 {[%clk 0:00:10.8]} 68. e5 {[%clk
0:00:08.2]} 68... b4 {[%clk 0:00:11.2]} 69. Ne2+ {[%clk 0:00:04.6]} 69... Kh4
{[%clk 0:00:10.6]} 70. Nd4 {[%clk 0:00:05.2]} 70... Kxh5 {[%clk 0:00:09.8]} 71.
Kf4 {[%clk 0:00:05.8]} 71... Ba4 {[%clk 0:00:09.1]} 72. e6 {[%clk 0:00:05.9]}
72... b3 {[%clk 0:00:09.5]} 73. Ne2 {[%clk 0:00:05.7]} 73... b2 {[%clk
0:00:09.8]} 74. Nc3 {[%clk 0:00:06.3]} 74... Bb3 {[%clk 0:00:09.8]} 75. Ke5
{[%clk 0:00:05.4]} 75... Kg5 {[%clk 0:00:09.6]} 76. f4+ {[%clk 0:00:05.7]} 76...
Kg4 {[%clk 0:00:09.8]} 77. Nb1 {[%clk 0:00:06.3]} 77... h5 {[%clk 0:00:09.4]}
78. Nd2 {[%clk 0:00:06.8]} 78... Ba2 {[%clk 0:00:09.7]} 79. e7 {[%clk 0:00:04]}
79... Bf7 {[%clk 0:00:09.7]} 80. f6 {[%clk 0:00:04.7]} 80... g6 {[%clk
0:00:09.1]} 81. Kd6 {[%clk 0:00:04.8]} 81... h4 {[%clk 0:00:08.5]} 82. Kd7
{[%clk 0:00:05.4]} 82... h3 {[%clk 0:00:08.5]} 83. e8=Q {[%clk 0:00:06.3]} 83...
Bxe8+ {[%clk 0:00:08.8]} 84. Kxe8 {[%clk 0:00:07.2]} 84... h2 {[%clk 0:00:09.2]}
85. f7 {[%clk 0:00:08.1]} 85... h1=Q {[%clk 0:00:09.6]} 86. f8=Q {[%clk
0:00:08.6]} 86... Qa8+ {[%clk 0:00:09.7]} 87. Kf7 {[%clk 0:00:09]} 87... Qxf8+
{[%clk 0:00:10.1]} 88. Kxf8 {[%clk 0:00:09.9]} 88... Kxf4 {[%clk 0:00:10.6]} 89.
Ke7 {[%clk 0:00:10.8]} 89... g5 {[%clk 0:00:11]} 90. Kd6 {[%clk 0:00:11.7]}
90... g4 {[%clk 0:00:11.6]} 91. Kd5 {[%clk 0:00:12.6]} 91... g3 {[%clk
0:00:12.1]} 92. Kd4 {[%clk 0:00:13.5]} 92... g2 {[%clk 0:00:12.6]} 93. Kc3
{[%clk 0:00:14.4]} 93... g1=Q {[%clk 0:00:13.1]} 94. Kxb2 {[%clk 0:00:15.3]}
94... Qd4+ {[%clk 0:00:13.4]} 95. Kc2 {[%clk 0:00:16.2]} 0-1